fUSD/lending_fUSD_20260621
["ID","MTS","AMOUNT","RATE_DAILY","PERIOD"]
[425965484,1782049843000,-2215.94538901,0.00022407,2]
[425965489,1782049843000,-1154.26,0.0002251,2]
[425965485,1782049843000,-2215.94538898,0.00022407,2]
[425965474,1782049843000,-347.0,0.00022,2]
[425965516,1782049843000,-1774.02,0.00023505,2]
[425965519,1782049843000,-713.94,0.00023729,2]
[425965514,1782049843000,-602.06,0.000235,7]
[425965561,1782049843000,-510.252341,0.0002421,2]
[425965552,1782049843000,-6738.76,0.00024161,2]
[425965555,1782049843000,-151.0,0.0002421,2]
[425965558,1782049843000,-500.0,0.0002421,2]
[425965556,1782049843000,-500.0,0.0002421,2]
[425965557,1782049843000,-500.0,0.0002421,2]
[425965554,1782049843000,-151.0,0.0002421,2]
[425965559,1782049843000,-500.0,0.0002421,2]
[425965562,1782049843000,-229.87120711,0.0002421,2]
[425965564,1782049843000,-6738.76,0.00024212,2]
[425965574,1782049843000,-6738.76,0.00024455,2]
[425965563,1782049843000,-248.7145801,0.0002421,2]
[425965575,1782049843000,-6738.76,0.00024498,2]
[425965565,1782049843000,-6738.76,0.0002424,2]
[425965567,1782049843000,-6738.76,0.00024303,2]
[425965566,1782049843000,-6738.76,0.00024271,2]
[425965568,1782049843000,-157.2,0.00024324,2]
[425965571,1782049843000,-6738.76,0.00024375,2]
[425965570,1782049843000,-6738.76,0.00024338,2]
[425965569,1782049843000,-150.0,0.00024333,2]
[425965515,1782049843000,-162.791075,0.00023502,2]
[425965572,1782049843000,-602.06,0.000244,7]
[425965576,1782049843000,-6738.76,0.00024544,2]
[425965577,1782049843000,-6738.76,0.00024591,2]
[425965578,1782049843000,-311.19,0.00024618,7]
[425965560,1782049843000,-500.0,0.0002421,2]
[425965553,1782049843000,-6738.76,0.00024185,2]
[425965573,1782049843000,-6738.76,0.00024414,2]
[425965549,1782049843000,-6738.76,0.00024101,2]
[425965551,1782049843000,-6738.76,0.00024139,2]
[425965518,1782049843000,-599.60298507,0.00023708,2]
[425965527,1782049843000,-440.0,0.00024,2]
[425965520,1782049843000,-204.42,0.00023766,2]
[425965522,1782049843000,-1308.12777404,0.00023943,2]
[425965525,1782049843000,-156.0,0.00024,2]
[425965526,1782049843000,-240.0,0.00024,2]
[425965528,1782049843000,-347.0,0.00024,2]
[425965524,1782049843000,-182.0,0.00024,2]
[425965523,1782049843000,-1446.0,0.00023973,5]
[425965529,1782049843000,-506.0,0.00024,2]
[425965530,1782049843000,-16846.59246988,0.00024008,2]
[425965532,1782049843000,-15366.90762046,0.0002403,2]
[425965521,1782049843000,-2000.0,0.0002389,7]
[425965531,1782049843000,-493.11231728,0.00024011,2]
[425965545,1782049843000,-6738.76,0.0002406,2]
[425965536,1782049843000,-6738.76,0.00024035,2]
[425965538,1782049843000,-6738.76,0.00024038,2]
[425965540,1782049843000,-151.0,0.00024043,2]
[425965534,1782049843000,-151.0,0.00024031,2]
[425965548,1782049843000,-6738.76,0.00024085,2]
[425965535,1782049843000,-6738.76,0.00024034,2]
[425965542,1782049843000,-6738.76,0.00024043,2]
[425965547,1782049843000,-6738.76,0.00024072,2]
[425965543,1782049843000,-6738.76,0.0002405,2]
[425965533,1782049843000,-151.0,0.00024031,2]
[425965550,1782049843000,-6738.76,0.00024119,2]
[425965608,1782049844000,-156.75,0.00025079,7]
[425965612,1782049844000,-602.06,0.000253,7]
[425965603,1782049844000,-151.0,0.00025,2]
[425965609,1782049844000,-6738.76,0.00025113,2]
[425965604,1782049844000,-514.0,0.00025,2]
[425965611,1782049844000,-6738.76,0.00025252,2]
[425965613,1782049844000,-6738.76,0.00025324,2]
[425965614,1782049844000,-6738.76,0.00025399,2]
[425965610,1782049844000,-6738.76,0.00025181,2]
[425965615,1782049844000,-6738.76,0.00025476,2]
[425965617,1782049844000,-6738.76,0.00025555,2]
[425965619,1782049844000,-1774.02,0.00025642,2]
[425965622,1782049844000,-151.0,0.00025663,2]
[425965625,1782049844000,-204.42,0.00025667,2]
[425965616,1782049844000,-156.76,0.000255,30]
[425965618,1782049844000,-6738.76,0.00025636,2]
[425965627,1782049844000,-1363.609,0.00025676,2]
[425965620,1782049844000,-16846.59246988,0.00025652,2]
[425965628,1782049844000,-383.0,0.00025676,2]
[425965605,1782049844000,-6738.76,0.00025046,2]
[425965626,1782049844000,-3560.0,0.00025676,2]
[425965606,1782049844000,-223.34,0.00025051,2]
[425965602,1782049844000,-362.0,0.00025,2]
[425965599,1782049844000,-166.0,0.00025,2]
[425965621,1782049844000,-169.49623291,0.00025659,2]
[425965582,1782049844000,-175.27,0.00024658,2]
[425965579,1782049844000,-200.0,0.00024628,2]
[425965587,1782049844000,-204.42,0.00024716,2]
[425965583,1782049844000,-1000.0,0.00024658,2]
[425965580,1782049844000,-6738.76,0.00024641,2]
[425965585,1782049844000,-156.75,0.00024658,2]
[425965584,1782049844000,-156.76,0.00024658,2]
[425965581,1782049844000,-155.559837,0.00024647,2]
[425965586,1782049844000,-6738.76,0.00024692,2]
[425965589,1782049844000,-6738.76,0.00024746,2]
[425965593,1782049844000,-1485.0,0.000249,5]
[425965595,1782049844000,-6738.76,0.00024982,2]
[425965601,1782049844000,-457.0,0.00025,2]
[425965597,1782049844000,-198.67946025,0.00025,2]
[425965600,1782049844000,-259.0,0.00025,2]
[425965590,1782049844000,-6738.76,0.00024802,2]
[425965592,1782049844000,-6738.76,0.0002486,2]
[425965598,1782049844000,-153.164862,0.00025,2]
[425965594,1782049844000,-6738.76,0.0002492,2]
[425965596,1782049844000,-267674.35340333,0.00025,2]
[425965607,1782049844000,-156.76,0.00025079,7]
[425965629,1782049844000,-1280.042,0.00025676,2]
[425965638,1782049844000,-6738.76,0.00025892,2]
[425965624,1782049844000,-15366.90762046,0.00025663,2]
[425965660,1782049844000,-1308.12777403,0.00026422,2]
[425965657,1782049844000,-6738.76,0.00026361,2]
[425965656,1782049844000,-847.0,0.00026332,2]
[425965663,1782049844000,-183.92733603,0.00026486,2]
[425965661,1782049844000,-621.78829552,0.00026447,2]
[425965662,1782049844000,-6738.76,0.00026461,2]
[425965659,1782049844000,-283.403,0.00026402,2]
[425965658,1782049844000,-316.742649,0.00026395,2]
[425965664,1782049844000,-6738.76,0.00026563,2]
[425965666,1782049844000,-250.0,0.00026849,8]
[425965667,1782049844000,-171.98,0.00026849,8]
[425965675,1782049844000,-548497.5057405,0.00027059,2]
[425965668,1782049844000,-7000.0,0.00027,2]
[425965665,1782049844000,-405.61,0.00026591,2]
[425965672,1782049844000,-151.0,0.00027,2]
[425965674,1782049844000,-257.55729896,0.00027059,2]
[425965671,1782049844000,-151.0,0.00027,2]
[425965670,1782049844000,-11661.89297217,0.00027,9]
[425965673,1782049844000,-167.226672,0.00027042,2]
[425965669,1782049844000,-200529.86858856,0.00027,2]
[425965623,1782049844000,-158.29196071,0.00025663,2]
[425965653,1782049844000,-6738.76,0.00026263,2]
[425965648,1782049844000,-6738.76,0.00026167,2]
[425965655,1782049844000,-192.0474609,0.00026296,2]
[425965647,1782049844000,-150.0,0.00026131,2]
[425965630,1782049844000,-6738.76,0.0002572,2]
[425965633,1782049844000,-12140.09,0.00025786,2]
[425965632,1782049844000,-819.4,0.00025786,2]
[425965634,1782049844000,-150.0,0.00025798,2]
[425965635,1782049844000,-316.0,0.000258,2]
[425965636,1782049844000,-310.0,0.000258,2]
[425965640,1782049844000,-6738.76,0.00025982,2]
[425965641,1782049844000,-33665.54090853,0.00026,5]
[425965651,1782049844000,-152.0,0.00026224,3]
[425965637,1782049844000,-6738.76,0.00025805,2]
[425965631,1782049844000,-460.83,0.00025786,2]
[425965676,1782049844000,-174907.64188822,0.00027059,2]
[425965642,1782049844000,-2288.0,0.00026,5]
[425965643,1782049844000,-6738.76,0.00026074,2]
[425965650,1782049844000,-602.06,0.000262,7]
[425965654,1782049844000,-157.2,0.00026296,2]
[425965649,1782049844000,-426.30302538,0.00026183,2]
[425965646,1782049844000,-168.31,0.00026131,2]
[425965644,1782049844000,-249.089,0.00026131,2]
[425965652,1782049844000,-154.96600771,0.00026229,3]
[425965645,1782049844000,-250.0,0.00026131,2]
[425965639,1782049844000,-156.76,0.00025922,2]
[425965680,1782049845000,-500.0,0.00013698,2]
[425965677,1782049845000,-500.0,0.00013698,2]
[425965678,1782049845000,-5.385677,0.00013698,2]
[425965679,1782049845000,-494.614323,0.00013698,2]
[425965681,1782049845000,-500.0,0.00013698,2]
[425965682,1782049845000,-500.0,0.00013698,2]
[425965689,1782049845000,-364.54515307,0.00020499,2]
[425965683,1782049845000,-500.0,0.00013698,2]
[425965685,1782049845000,-71.45484693,0.00013698,2]
[425965686,1782049845000,-428.54515307,0.00013698,2]
[425965687,1782049845000,-135.45484693,0.00020499,2]
[425965688,1782049845000,-2386.70897579,0.00012495,2]
[425965684,1782049845000,-500.0,0.00013698,2]
[425965691,1782049846000,-61.43435688,0.00020587,2]
[425965693,1782049846000,-77.99515751,0.000261,5]
[425965690,1782049846000,-438.56564312,0.00020587,2]
[425965692,1782049846000,-205.13048561,0.000233,4]
[425965697,1782049846000,-127.13532808,0.000261,5]
[425965698,1782049846000,-517.24473844,0.00027059,2]
[425965705,1782049846000,-500.0,0.00021899,2]
[425965715,1782049846000,-500.0,0.00027058,2]
[425965714,1782049846000,-500.0,0.00027058,2]
[425965695,1782049846000,-500.0,0.00020587,2]
[425965706,1782049846000,-500.0,0.00024999,2]
[425965707,1782049846000,-500.0,0.00024999,2]
[425965704,1782049846000,-2500.0,0.000126,2]
[425965713,1782049846000,-500.0,0.00027042,2]
[425965716,1782049846000,-500.0,0.00027058,2]
[425965711,1782049846000,-200.0,0.00026772,2]
[425965712,1782049846000,-500.0,0.00026999,2]
[425965717,1782049846000,-18592.48354483,0.00027059,2]
[425965719,1782049846000,-1280.9296831,0.00027059,2]
[425965718,1782049846000,-537.20953007,0.00027059,2]
[425965709,1782049846000,-200.0,0.00026018,2]
[425965722,1782049928000,4137659.26441724,0.00030137,120]
[425965723,1782049943000,315750.13640183,0.00030137,120]
[425965726,1782050085000,268543.88452187,0.00030137,120]
[425965748,1782050497000,4003.94509671,0.00030137,120]
[425965753,1782050586000,150.0,0.00030136,120]
[425965754,1782050861000,281.45042823,0.00030136,120]
[425965763,1782051032000,-296.31774224,0.00012494,2]
[425965758,1782051032000,-160.0,0.00012479,2]
[425965760,1782051032000,-160.0,0.00012481,2]
[425965757,1782051032000,-166.66666666,0.00012348,2]
[425965759,1782051032000,-160.0,0.00012481,2]
[425965761,1782051032000,-211.32048825,0.00012494,2]
[425965762,1782051032000,-305.83787872,0.00012494,2]
[425965766,1782051032000,-10.79142413,0.00012494,2]
[425965764,1782051032000,-500.0,0.00012494,2]
[425965765,1782051032000,-500.0,0.00012494,2]
[425965774,1782051032000,-4021.7327,0.000125,2]
[425965770,1782051032000,-573.47025592,0.00012495,2]
[425965777,1782051032000,-1439.77784103,0.000125,2]
[425965775,1782051032000,-426.30302538,0.000125,2]
[425965768,1782051032000,-15366.90762052,0.00012495,2]
[425965772,1782051032000,-1407.42252294,0.00012495,2]
[425965776,1782051032000,-218.50516104,0.000125,2]
[425965769,1782051032000,-14588.46296699,0.00012495,2]
[425965771,1782051032000,-680.94783085,0.00012495,2]
[425965767,1782051032000,-432.13076411,0.00012494,2]
[425965773,1782051032000,-150.0,0.00012499,2]
[425965791,1782051038000,-1287.04904961,0.000125,2]
[425965788,1782051038000,-313.74007389,0.000125,2]
[425965790,1782051038000,-34603.27463907,0.000125,2]
[425965789,1782051038000,-260.420536,0.000125,2]
[425965787,1782051038000,-1060.22215897,0.000125,2]
[425965855,1782051040000,-672.0,0.000125,2]
[425965856,1782051040000,-80153.09380143,0.000125,2]
[425965858,1782051040000,-2000.0,0.000126,2]
[425965861,1782051040000,-299.99,0.00012619,2]
[425965860,1782051040000,-6592.69,0.00012619,2]
[425965857,1782051040000,-33314.5604,0.000126,2]
[425965859,1782051040000,-150.0,0.00012619,2]
[425965905,1782051041000,-500.0,0.00013698,2]
[425965895,1782051041000,-500.0,0.00013698,2]
[425965904,1782051041000,-500.0,0.00013698,2]
[425965899,1782051041000,-274.66228116,0.00013698,2]
[425965897,1782051041000,-500.0,0.00013698,2]
[425965901,1782051041000,-500.0,0.00013698,2]
[425965891,1782051041000,-500.0,0.00013698,2]
[425965902,1782051041000,-426.56938148,0.00013698,2]
[425965900,1782051041000,-500.0,0.00013698,2]
[425965903,1782051041000,-500.0,0.00013698,2]
[425965906,1782051041000,-500.0,0.00013698,2]
[425965896,1782051041000,-500.0,0.00013698,2]
[425965913,1782051041000,-500.0,0.00013698,2]
[425965907,1782051041000,-500.0,0.00013698,2]
[425965914,1782051041000,-15366.90762046,0.00013873,2]
[425965919,1782051041000,-15161.93322289,0.0001414,2]
[425965912,1782051041000,-500.0,0.00013698,2]
[425965911,1782051041000,-500.0,0.00013698,2]
[425965910,1782051041000,-500.0,0.00013698,2]
[425965918,1782051041000,-275.23,0.00014028,2]
[425965909,1782051041000,-500.0,0.00013698,2]
[425965889,1782051041000,-500.0,0.00013698,2]
[425965917,1782051041000,-581.87597968,0.00013969,2]
[425965915,1782051041000,-166.66,0.00013879,2]
[425965916,1782051041000,-150.0,0.00013959,2]
[425965920,1782051041000,-166.66,0.00014154,2]
[425965908,1782051041000,-500.0,0.00013698,2]
[425965892,1782051041000,-500.0,0.00013698,2]
[425965875,1782051041000,-167.45,0.00013086,2]
[425965887,1782051041000,-500.0,0.00013698,2]
[425965921,1782051041000,-428.36,0.00014289,2]
[425965868,1782051041000,-150.99,0.0001262,2]
[425965869,1782051041000,-216.32317309,0.00012621,2]
[425965864,1782051041000,-15105.26,0.0001262,2]
[425965866,1782051041000,-999.99,0.0001262,2]
[425965867,1782051041000,-12139.37,0.0001262,2]
[425965862,1782051041000,-9999.99,0.0001262,2]
[425965863,1782051041000,-9999.99,0.0001262,2]
[425965865,1782051041000,-9999.99,0.0001262,2]
[425965870,1782051041000,-150.0,0.00012744,2]
[425965872,1782051041000,-2487.61,0.00012962,2]
[425965871,1782051041000,-150.0,0.00012869,2]
[425965874,1782051041000,-166.66,0.00013055,2]
[425965890,1782051041000,-500.0,0.00013698,2]
[425965881,1782051041000,-500.0,0.00013698,2]
[425965880,1782051041000,-500.0,0.00013698,2]
[425965879,1782051041000,-166.66,0.00013604,2]
[425965877,1782051041000,-166.66,0.00013329,2]
[425965876,1782051041000,-1774.02,0.00013144,2]
[425965878,1782051041000,-255.0,0.00013599,2]
[425965883,1782051041000,-500.0,0.00013698,2]
[425965894,1782051041000,-500.0,0.00013698,2]
[425965893,1782051041000,-500.0,0.00013698,2]
[425965886,1782051041000,-500.0,0.00013698,2]
[425965882,1782051041000,-500.0,0.00013698,2]
[425965884,1782051041000,-500.0,0.00013698,2]
[425965885,1782051041000,-500.0,0.00013698,2]
[425965888,1782051041000,-500.0,0.00013698,2]
[425965873,1782051041000,-1656.08,0.00013047,2]
[425965923,1782051041000,-166.66,0.00014429,2]
[425965898,1782051041000,-500.0,0.00013698,2]
[425965930,1782051041000,-13858.0713622,0.00014989,2]
[425965957,1782051041000,-500.0,0.00016438,2]
[425965968,1782051041000,-500.0,0.00016438,2]
[425965969,1782051041000,-500.0,0.00016438,2]
[425965965,1782051041000,-500.0,0.00016438,2]
[425965966,1782051041000,-500.0,0.00016438,2]
[425965970,1782051041000,-500.0,0.00016438,2]
[425965967,1782051041000,-500.0,0.00016438,2]
[425965959,1782051041000,-500.0,0.00016438,2]
[425965960,1782051041000,-435.21744891,0.00016438,2]
[425965961,1782051041000,-500.0,0.00016438,2]
[425965962,1782051041000,-500.0,0.00016438,2]
[425965958,1782051041000,-500.0,0.00016438,2]
[425965964,1782051041000,-500.0,0.00016438,2]
[425965955,1782051041000,-157.2,0.00016438,2]
[425965963,1782051041000,-500.0,0.00016438,2]
[425965979,1782051041000,-1184.5257635,0.00017273,2]
[425965980,1782051041000,-2089.64385313,0.00017273,2]
[425965981,1782051041000,-1613.0535,0.00017386,2]
[425965971,1782051041000,-166.66,0.00016553,2]
[425965973,1782051041000,-1555.5,0.00016838,2]
[425965977,1782051041000,-166.66,0.0001705,2]
[425965974,1782051041000,-500.0,0.00016886,2]
[425965975,1782051041000,-429.70900624,0.00016999,2]
[425965976,1782051041000,-500.0,0.00016999,2]
[425965978,1782051041000,-2088.37035378,0.00017116,2]
[425965983,1782051041000,-166.66,0.00017548,2]
[425965984,1782051041000,-428.36,0.00017861,2]
[425965925,1782051041000,-1774.02,0.00014787,2]
[425965972,1782051041000,-15366.90762046,0.0001663,2]
[425965953,1782051041000,-1500.0,0.0001629,2]
[425965982,1782051041000,-15161.93322289,0.00017429,2]
[425965956,1782051041000,-500.0,0.00016438,2]
[425965949,1782051041000,-15161.93322289,0.00015784,2]
[425965924,1782051041000,-1154.26,0.00014589,2]
[425965929,1782051041000,-291.99293023,0.00014908,2]
[425965928,1782051041000,-10000.0,0.000149,2]
[425965922,1782051041000,-200.0,0.00014402,2]
[425965926,1782051041000,-2088.37035378,0.00014805,2]
[425965932,1782051041000,-500.0,0.00014999,2]
[425965931,1782051041000,-500.0,0.00014999,2]
[425965943,1782051041000,-232.88,0.00015068,2]
[425965942,1782051041000,-166.66,0.00015062,2]
[425965934,1782051041000,-500.0,0.00014999,2]
[425965933,1782051041000,-500.0,0.00014999,2]
[425965935,1782051041000,-500.0,0.00014999,2]
[425965936,1782051041000,-500.0,0.00014999,2]
[425965927,1782051041000,-1178.56611166,0.000149,2]
[425965941,1782051041000,-352.33917737,0.00015,2]
[425965951,1782051041000,-428.36,0.00016075,2]
[425965954,1782051041000,-1774.02,0.0001643,2]
[425965952,1782051041000,-448.8513308,0.00016273,2]
[425965950,1782051041000,-166.66,0.00016056,2]
[425965939,1782051041000,-2084.19713523,0.00015,2]
[425965947,1782051041000,-166.66,0.00015559,2]
[425965948,1782051041000,-4125.79,0.00015641,2]
[425965945,1782051041000,-15366.90762046,0.00015252,2]
[425965944,1782051041000,-426.30302538,0.00015233,2]
[425965940,1782051041000,-8112.79712964,0.00015,2]
[425965937,1782051041000,-500.0,0.00014999,2]
[425965938,1782051041000,-1662850.38932213,0.00015,2]
[425965946,1782051041000,-167.46,0.00015378,2]
[425966027,1782051042000,-302.073581,0.000202,2]
[425966025,1782051042000,-1934.38338736,0.00020126,2]
[425966026,1782051042000,-204.42,0.00020165,2]
[425966024,1782051042000,-602.06,0.000201,2]
[425966014,1782051042000,-440.0,0.0002,2]
[425966017,1782051042000,-167.67306325,0.0002,2]
[425966020,1782051042000,-151.0,0.00020095,2]
[425966028,1782051042000,-215.449231,0.00020261,2]
[425966018,1782051042000,-506.0,0.0002,2]
[425966010,1782051042000,-163.92815353,0.0002,14]
[425966023,1782051042000,-742.2166775,0.000201,2]
[425966019,1782051042000,-192.0,0.0002,2]
[425966031,1782051042000,-742.2166775,0.000203,2]
[425966022,1782051042000,-5537.27918479,0.000201,2]
[425966029,1782051042000,-212.539835,0.00020261,2]
[425966040,1782051042000,-500.0,0.00020587,2]
[425966030,1782051042000,-5537.27918479,0.000203,2]
[425966034,1782051042000,-1154.26,0.00020424,2]
[425966033,1782051042000,-302.073581,0.000204,2]
[425966032,1782051042000,-157.2,0.00020381,2]
[425966035,1782051042000,-5537.27918479,0.000205,2]
[425966038,1782051042000,-150.0,0.0002058,2]
[425966037,1782051042000,-150.0,0.0002058,2]
[425966011,1782051042000,-151.0,0.0002,2]
[425966036,1782051042000,-742.2166775,0.000205,2]
[425966021,1782051042000,-256.70248179,0.00020095,2]
[425966015,1782051042000,-157.0,0.0002,2]
[425966001,1782051042000,-5537.27918479,0.000199,2]
[425966012,1782051042000,-156.0,0.0002,2]
[425966039,1782051042000,-187.42159584,0.0002058,2]
[425965993,1782051042000,-15161.93322289,0.00019074,2]
[425965985,1782051042000,-1672.7364795,0.00017934,2]
[425965991,1782051042000,-1734.62772924,0.00018482,2]
[425965987,1782051042000,-15366.90762046,0.00018008,2]
[425965986,1782051042000,-426.30302538,0.00017967,2]
[425965989,1782051042000,-2245.05,0.00018356,2]
[425965990,1782051042000,-157.2,0.0001841,2]
[425965992,1782051042000,-1798.80895522,0.0001903,2]
[425965988,1782051042000,-1774.02,0.00018073,2]
[425965994,1782051042000,-500.0,0.00019272,2]
[425965997,1782051042000,-1865.36488656,0.00019578,2]
[425966013,1782051042000,-240.0,0.0002,2]
[425966000,1782051042000,-218.50516103,0.00019899,2]
[425965995,1782051042000,-15366.90762046,0.00019387,2]
[425965996,1782051042000,-2088.37035378,0.00019426,2]
[425965999,1782051042000,-1774.02,0.00019716,2]
[425966003,1782051042000,-17710.44466581,0.0001995,15]
[425965998,1782051042000,-428.36,0.00019648,2]
[425966004,1782051042000,-500.0,0.00019987,2]
[425966008,1782051042000,-1892.98,0.0002,2]
[425966005,1782051042000,-302.073581,0.0002,2]
[425966016,1782051042000,-347.0,0.0002,2]
[425966006,1782051042000,-150.0,0.0002,7]
[425966009,1782051042000,-153.733346,0.0002,2]
[425966007,1782051042000,-1971.0,0.0002,2]
[425966002,1782051042000,-742.2166775,0.000199,2]
[425966047,1782051042000,-163.7612667,0.00020674,2]
[425966041,1782051042000,-500.0,0.00020587,2]
[425966044,1782051042000,-302.073581,0.000206,2]
[425966071,1782051042000,-1377.42282658,0.00020674,2]
[425966087,1782051042000,-1536.04360648,0.00020674,2]
[425966076,1782051042000,-151.0,0.00020674,2]
[425966077,1782051042000,-2005.9555727,0.00020674,2]
[425966079,1782051042000,-159.51833463,0.00020674,2]
[425966078,1782051042000,-151.0,0.00020674,2]
[425966080,1782051042000,-500.0,0.00020674,2]
[425966082,1782051042000,-697.24954184,0.00020674,2]
[425966081,1782051042000,-1481.2378076,0.00020674,2]
[425966083,1782051042000,-151.0,0.00020674,2]
[425966086,1782051042000,-500.0,0.00020674,2]
[425966084,1782051042000,-209.40437684,0.00020674,2]
[425966069,1782051042000,-151.0,0.00020674,2]
[425966085,1782051042000,-500.0,0.00020674,2]
[425966091,1782051042000,-500.0,0.00020674,2]
[425966088,1782051042000,-151.0,0.00020674,2]
[425966094,1782051042000,-500.0,0.00020674,2]
[425966097,1782051042000,-500.0,0.00020674,2]
[425966096,1782051042000,-284.47766903,0.00020674,2]
[425966092,1782051042000,-1592.87721992,0.00020674,2]
[425966089,1782051042000,-151.0,0.00020674,2]
[425966095,1782051042000,-152.0,0.00020674,2]
[425966098,1782051042000,-151.0,0.00020674,2]
[425966093,1782051042000,-151.0,0.00020674,2]
[425966043,1782051042000,-500.0,0.00020587,2]
[425966099,1782051042000,-151.0,0.00020674,2]
[425966090,1782051042000,-152.0,0.00020674,2]
[425966074,1782051042000,-151.0,0.00020674,2]
[425966100,1782051042000,-500.0,0.00020674,2]
[425966072,1782051042000,-151.0,0.00020674,2]
[425966073,1782051042000,-500.0,0.00020674,2]
[425966046,1782051042000,-155.48525485,0.00020674,2]
[425966050,1782051042000,-209.40437684,0.00020674,2]
[425966051,1782051042000,-156.89976954,0.00020674,2]
[425966048,1782051042000,-156.84738482,0.00020674,2]
[425966049,1782051042000,-151.0,0.00020674,2]
[425966045,1782051042000,-500.0,0.00020674,2]
[425966053,1782051042000,-151.0,0.00020674,2]
[425966052,1782051042000,-1030.0,0.00020674,2]
[425966054,1782051042000,-1068.11,0.00020674,2]
[425966062,1782051042000,-1235.18214925,0.00020674,2]
[425966061,1782051042000,-151.0,0.00020674,2]
[425966063,1782051042000,-151.0,0.00020674,2]
[425966042,1782051042000,-500.0,0.00020587,2]
[425966060,1782051042000,-1191.11104074,0.00020674,2]
[425966055,1782051042000,-151.0,0.00020674,2]
[425966068,1782051042000,-1328.27659266,0.00020674,2]
[425966066,1782051042000,-500.0,0.00020674,2]
[425966075,1782051042000,-1428.38747117,0.00020674,2]
[425966070,1782051042000,-500.0,0.00020674,2]
[425966067,1782051042000,-9211.34798984,0.00020674,2]
[425966064,1782051042000,-578.20924308,0.00020674,2]
[425966056,1782051042000,-1107.63007,0.00020674,2]
[425966058,1782051042000,-151.0,0.00020674,2]
[425966057,1782051042000,-201.93286099,0.00020674,2]
[425966059,1782051042000,-1148.61238259,0.00020674,2]
[425966065,1782051042000,-1280.88388877,0.00020674,2]
[425966148,1782051043000,-205.13048559,0.00020849,3]
[425966146,1782051043000,-151.0,0.00020839,2]
[425966149,1782051043000,-151.0,0.00020894,2]
[425966144,1782051043000,-151.0,0.00020784,2]
[425966139,1782051043000,-151.0,0.00020729,2]
[425966133,1782051043000,-151.0,0.00020674,2]
[425966134,1782051043000,-5537.27918479,0.000207,2]
[425966132,1782051043000,-152.0,0.00020674,2]
[425966145,1782051043000,-302.073581,0.000208,2]
[425966142,1782051043000,-15366.90762046,0.00020765,2]
[425966137,1782051043000,-15161.93322289,0.00020718,2]
[425966154,1782051043000,-240.0,0.00021,2]
[425966150,1782051043000,-5537.27918479,0.000209,2]
[425966147,1782051043000,-1308.12777404,0.00020849,2]
[425966152,1782051043000,-151.0,0.00021,2]
[425966151,1782051043000,-151.0,0.00020949,2]
[425966153,1782051043000,-156.0,0.00021,2]
[425966157,1782051043000,-347.0,0.00021,2]
[425966158,1782051043000,-506.0,0.00021,2]
[425966156,1782051043000,-157.0,0.00021,2]
[425966155,1782051043000,-440.0,0.00021,2]
[425966160,1782051043000,-151.0,0.00021004,2]
[425966159,1782051043000,-192.0,0.00021,2]
[425966128,1782051043000,-152.0,0.00020674,2]
[425966140,1782051043000,-500.0,0.00020764,2]
[425966130,1782051043000,-151.0,0.00020674,2]
[425966165,1782051043000,-151.0,0.00021169,2]
[425966135,1782051043000,-742.2166775,0.000207,2]
[425966110,1782051043000,-500.0,0.00020674,2]